fUSD/lending_fUSD_20240615
["ID","MTS","AMOUNT","RATE_DAILY","PERIOD"]
[329526647,1718417505404,-500.0,0.00022739,3]
[329526648,1718417505429,-518.1359302,0.00022739,3]
[329526649,1718417505463,-974.3,0.00022739,3]
[329526650,1718417505482,-600.0,0.00022739,3]
[329526651,1718417505496,-771.35,0.00022739,3]
[329526652,1718417505509,-2138.1,0.00022739,3]
[329526653,1718417505530,-691.68,0.00022739,3]
[329526654,1718417505549,-500.0,0.00022739,3]
[329526655,1718417505561,-3270.81,0.00022739,3]
[329526656,1718417505572,-500.0,0.00022739,3]
[329526657,1718417505590,-631.69989656,0.00022739,3]
[329526658,1718417505605,-713.64,0.00022739,3]
[329526659,1718417505618,-500.0,0.00022739,3]
[329526660,1718417505638,-599.22,0.00022739,3]
[329526661,1718417505649,-500.0,0.00022739,3]
[329526662,1718417505663,-536.54268305,0.00022739,3]
[329526663,1718417505676,-500.0,0.00022739,3]
[329526664,1718417505688,-500.0,0.00022739,3]
[329526665,1718417505701,-523.84,0.00022739,3]
[329526666,1718417505715,-500.0,0.00022739,3]
[329526667,1718417505728,-1195.79,0.00022739,3]
[329526668,1718417505741,-500.0,0.00022739,3]
[329526669,1718417505754,-551.72852729,0.00022739,3]
[329526670,1718417505769,-500.0,0.00022739,3]
[329526671,1718417505784,-500.0,0.00022739,3]
[329526672,1718417505798,-500.0,0.00022739,3]
[329526673,1718417505813,-500.0,0.00022739,3]
[329526674,1718417505832,-500.0,0.00022739,3]
[329526675,1718417505844,-1341.44,0.00022739,3]
[329526676,1718417505866,-500.0,0.00022739,3]
[329526677,1718417505892,-1129.63,0.00022739,3]
[329526678,1718417506059,-556.8293787,0.00022739,3]
[329526679,1718417506075,-596.88448917,0.00022739,3]
[329526680,1718417506096,-548.58227522,0.00022739,3]
[329526681,1718417506108,-500.0,0.00022739,3]
[329526682,1718417506126,-500.0,0.00022739,3]
[329526683,1718417506142,-500.0,0.00022739,3]
[329526684,1718417506154,-500.0,0.00022739,3]
[329526685,1718417506165,-1346.88,0.00022739,3]
[329526686,1718417506193,-3501.23,0.00022739,3]
[329526687,1718417506210,-516.84,0.00022739,3]
[329526688,1718417506226,-500.0,0.00022739,3]
[329526689,1718417506242,-500.0,0.00022739,3]
[329526690,1718417506258,-1291.54,0.00022739,3]
[329526691,1718417506273,-809.78,0.00022739,3]
[329526692,1718417506285,-500.0,0.00022739,3]
[329526693,1718417506304,-500.0,0.00022739,3]
[329526694,1718417506344,-923.8,0.00022739,3]
[329526695,1718417506376,-500.0,0.00022739,3]
[329526696,1718417506390,-1654.95,0.00022739,3]
[329526697,1718417506422,-854.0,0.00022739,3]
[329526698,1718417506436,-500.0,0.00022739,3]
[329526699,1718417506512,-4144.87,0.00022739,3]
[329526700,1718417506546,-500.0,0.00022739,3]
[329526701,1718417506562,-500.0,0.00022739,3]
[329526702,1718417506588,-500.0,0.00022739,3]
[329526703,1718417506602,-500.0,0.00022739,3]
[329526704,1718417506614,-2305.21,0.00022739,3]
[329526705,1718417506626,-500.0,0.00022739,3]
[329526706,1718417506639,-500.0,0.00022739,3]
[329526707,1718417506652,-520.14676099,0.00022739,3]
[329526708,1718417506676,-500.0,0.00022739,3]
[329526709,1718417506731,-547.04600641,0.00022739,3]
[329526710,1718417506749,-500.0,0.00022739,3]
[329526711,1718417506771,-527.90602917,0.00022739,3]
[329526712,1718417506792,-500.0,0.00022739,3]
[329526713,1718417506803,-543.52237277,0.00022739,3]
[329526714,1718417506821,-1983.64,0.00022739,3]
[329526715,1718417506840,-500.0,0.00022739,3]
[329526716,1718417506851,-500.0,0.00022739,3]
[329526717,1718417506863,-500.0,0.00022739,3]
[329526718,1718417506883,-500.0,0.00022739,3]
[329526719,1718417506897,-278.58161807,0.00022739,3]
[329526720,1718417506911,-768.32,0.00022739,3]
[329526721,1718417506925,-500.0,0.00022739,3]
[329526722,1718417506942,-500.0,0.00022739,3]
[329526723,1718417506956,-5336.34,0.00022739,3]
[329526724,1718417506976,-500.0,0.00022739,3]
[329526725,1718417506993,-822.64,0.00022739,3]
[329526726,1718417507020,-500.0,0.00022739,3]
[329526727,1718417507036,-180.79515138,0.00022881,2]
[329526728,1718417507050,-540.28425812,0.00022913,2]
[329526729,1718417507063,-1300.0,0.00023,2]
[329526730,1718417507082,-500.0,0.00023012,3]
[329526731,1718417507093,-500.0,0.00023013,3]
[329526732,1718417507104,-500.0,0.00023013,3]
[329526733,1718417507124,-500.0,0.00023013,3]
[329526734,1718417507138,-500.0,0.00023013,3]
[329526735,1718417507150,-500.0,0.00023013,3]
[329526736,1718417507162,-523.37092993,0.00023013,3]
[329526737,1718417507173,-613.51437233,0.00023013,3]
[329526738,1718417507185,-211.92467668,0.00023013,3]
[329526739,1718417507198,-500.0,0.00023013,3]
[329526740,1718417507216,-509.23144959,0.00023013,3]
[329526741,1718417507228,-500.0,0.00023013,3]
[329526742,1718417507254,-500.0,0.00023013,3]
[329526743,1718417507296,-500.0,0.00023013,3]
[329526744,1718417507314,-500.0,0.00023013,3]
[329526745,1718417507338,-500.0,0.00023013,3]
[329526746,1718417507363,-668.77,0.00023013,3]
[329526747,1718417507379,-500.0,0.00023013,3]
[329526748,1718417507397,-500.0,0.00023013,3]
[329526749,1718417507409,-537.67276776,0.00023013,3]
[329526750,1718417507425,-515.63777112,0.00023013,3]
[329526751,1718417507439,-528.90147708,0.00023013,3]
[329526752,1718417507453,-210.56812999,0.00023013,3]
[329526753,1718417507473,-511.66906455,0.00023013,3]
[329526754,1718417507487,-500.0,0.00023013,3]
[329526755,1718417507500,-500.0,0.00023013,3]
[329526756,1718417507515,-500.0,0.00023013,3]
[329526757,1718417507530,-500.0,0.00023013,3]
[329526758,1718417507548,-510.1559723,0.00023013,3]
[329526759,1718417507561,-246.06389999,0.00023013,3]
[329526760,1718417507575,-500.0,0.00023013,3]
[329526761,1718417507588,-390.63202837,0.00023013,3]
[329526762,1718417507607,-500.0,0.00023013,3]
[329526763,1718417507620,-500.0,0.00023013,3]
[329526764,1718417507633,-500.0,0.00023013,3]
[329526765,1718417507645,-500.0,0.00023013,3]
[329526766,1718417507667,-500.0,0.00023013,3]
[329526767,1718417507678,-500.0,0.00023013,3]
[329526768,1718417507693,-520.64279605,0.00023013,3]
[329526769,1718417507715,-500.0,0.00023013,3]
[329526770,1718417507733,-500.0,0.00023013,3]
[329526771,1718417507758,-500.0,0.00023013,3]
[329526772,1718417507777,-500.0,0.00023013,3]
[329526773,1718417507792,-500.0,0.00023013,3]
[329526774,1718417507810,-500.0,0.00023013,3]
[329526775,1718417507823,-500.0,0.00023013,3]
[329526776,1718417507846,-500.0,0.00023013,3]
[329526777,1718417507865,-500.0,0.00023013,3]
[329526778,1718417507883,-500.0,0.00023013,3]
[329526779,1718417507906,-500.0,0.00023013,3]
[329526780,1718417507924,-500.0,0.00023013,3]
[329526781,1718417507955,-500.0,0.00023013,3]
[329526782,1718417507981,-500.0,0.00023013,3]
[329526783,1718417507993,-500.0,0.00023013,3]
[329526784,1718417508006,-558.89,0.00023013,3]
[329526785,1718417508032,-500.0,0.00023013,3]
[329526786,1718417508074,-500.0,0.00023013,3]
[329526787,1718417508103,-500.0,0.00023013,3]
[329526788,1718417508137,-561.96066765,0.00023013,3]
[329526789,1718417508158,-553.17094048,0.00023013,3]
[329526790,1718417508181,-500.0,0.00023013,3]
[329526791,1718417508209,-500.0,0.00023013,3]
[329526792,1718417508225,-500.0,0.00023013,3]
[329526793,1718417508252,-562.02454324,0.00023013,3]
[329526794,1718417508276,-500.0,0.00023013,3]
[329526795,1718417508293,-500.0,0.00023013,3]
[329526796,1718417508310,-500.0,0.00023013,3]
[329526797,1718417508328,-500.0,0.00023013,3]
[329526798,1718417508347,-500.0,0.00023013,3]
[329526799,1718417508373,-552.49860935,0.00023013,3]
[329526800,1718417508387,-568.56181289,0.00023013,3]
[329526801,1718417508408,-500.0,0.00023013,3]
[329526802,1718417508424,-238.70496313,0.00023013,3]
[329526803,1718417508443,-500.0,0.00023013,3]
[329526804,1718417508459,-500.0,0.00023013,3]
[329526805,1718417508480,-500.0,0.00023013,3]
[329526806,1718417508498,-500.0,0.00023013,3]
[329526807,1718417508513,-500.0,0.00023013,3]
[329526808,1718417508531,-500.0,0.00023013,3]
[329526809,1718417508550,-500.0,0.00023013,3]
[329526810,1718417508569,-500.0,0.00023013,3]
[329526811,1718417508583,-500.0,0.00023013,3]
[329526812,1718417508595,-500.0,0.00023013,3]
[329526813,1718417508616,-564.06722562,0.00023013,3]
[329526814,1718417508660,-500.0,0.00023013,3]
[329526815,1718417508684,-500.0,0.00023013,3]
[329526816,1718417508714,-500.0,0.00023013,3]
[329526817,1718417508739,-500.0,0.00023013,3]
[329526818,1718417508762,-481.74710644,0.00023013,3]
[329526819,1718417508781,-500.0,0.00023013,3]
[329526820,1718417508799,-500.0,0.00023013,3]
[329526821,1718417508826,-500.0,0.00023013,3]
[329526822,1718417508852,-607.69,0.00023013,3]
[329526823,1718417508870,-500.0,0.00023013,3]
[329526824,1718417508892,-500.0,0.00023013,3]
[329526825,1718417508912,-500.0,0.00023013,3]
[329526826,1718417508926,-500.0,0.00023013,3]
[329526827,1718417508957,-785.34,0.00023013,3]
[329526828,1718417508970,-540.89413515,0.00023013,3]
[329526829,1718417508983,-347.86189962,0.00023013,3]
[329526830,1718417509012,-500.0,0.00023013,3]
[329526831,1718417509026,-500.0,0.00023013,3]
[329526832,1718417509039,-519.56811643,0.00023013,3]
[329526833,1718417509066,-514.22909893,0.00023013,3]
[329526834,1718417509108,-500.0,0.00023013,3]
[329526835,1718417509123,-500.0,0.00023013,3]
[329526836,1718417509136,-500.0,0.00023013,3]
[329526837,1718417509150,-500.0,0.00023013,3]
[329526838,1718417509169,-500.0,0.00023013,3]
[329526839,1718417509198,-500.0,0.00023013,3]
[329526840,1718417509219,-500.0,0.00023013,3]
[329526841,1718417509232,-500.0,0.00023013,3]
[329526842,1718417509249,-500.0,0.00023013,3]
[329526843,1718417509272,-500.0,0.00023013,3]
[329526844,1718417509287,-500.0,0.00023013,3]
[329526845,1718417509311,-500.0,0.00023013,3]
[329526846,1718417509331,-536.20683521,0.00023013,3]
[329526847,1718417509355,-500.0,0.00023013,3]
[329526848,1718417509368,-500.0,0.00023013,3]
[329526849,1718417509398,-500.0,0.00023013,3]
[329526850,1718417509411,-500.0,0.00023013,3]
[329526851,1718417509435,-500.0,0.00023013,3]
[329526852,1718417509471,-500.0,0.00023013,3]
[329526853,1718417509500,-500.0,0.00023013,3]
[329526854,1718417509529,-500.0,0.00023013,3]
[329526855,1718417509560,-500.0,0.00023013,2]
[329526856,1718417509577,-500.0,0.00023013,3]
[329526857,1718417509594,-500.0,0.00023013,3]
[329526858,1718417509607,-500.0,0.00023013,3]
[329526859,1718417509622,-507.65,0.00023013,3]
[329526860,1718417509641,-500.0,0.00023013,3]
[329526861,1718417509661,-500.0,0.00023013,3]
[329526862,1718417509678,-512.20684093,0.00023013,3]
[329526863,1718417509694,-500.0,0.00023013,3]
[329526864,1718417509713,-509.91952286,0.00023013,3]
[329526865,1718417509742,-500.0,0.00023013,3]
[329526866,1718417509766,-500.0,0.00023013,3]
[329526867,1718417509778,-500.0,0.00023013,3]
[329526868,1718417509790,-500.0,0.00023013,3]
[329526869,1718417509808,-500.0,0.00023013,3]
[329526870,1718417509823,-500.0,0.00023013,3]
[329526871,1718417509835,-500.0,0.00023013,3]
[329526872,1718417509851,-500.0,0.00023013,3]
[329526873,1718417509866,-500.0,0.00023013,3]
[329526874,1718417509881,-500.0,0.00023013,3]
[329526875,1718417509901,-500.0,0.00023013,3]
[329526876,1718417509922,-500.0,0.00023013,3]
[329526877,1718417510061,-500.0,0.00023013,3]
[329526878,1718417510072,-491.45759616,0.00023013,3]
[329526879,1718417510085,-502.31432788,0.00023013,3]
[329526880,1718417510119,-500.0,0.00023013,3]
[329526881,1718417510137,-500.0,0.00023013,3]
[329526882,1718417510151,-514.08046571,0.00023013,3]
[329526883,1718417510170,-500.0,0.00023013,3]
[329526884,1718417510211,-500.0,0.00023013,3]
[329526885,1718417510230,-500.0,0.00023013,3]
[329526886,1718417510242,-500.0,0.00023013,3]
[329526887,1718417510267,-515.84,0.00023013,3]
[329526888,1718417510295,-500.0,0.00023013,3]
[329526889,1718417510319,-500.0,0.00023013,3]
[329526890,1718417510348,-500.0,0.00023013,3]
[329526891,1718417510373,-500.0,0.00023013,3]
[329526892,1718417510388,-500.0,0.00023013,3]
[329526893,1718417510424,-626.71124854,0.00023013,3]
[329526894,1718417510450,-539.69697951,0.00023013,3]
[329526895,1718417510469,-500.0,0.00023013,3]
[329526896,1718417510497,-500.0,0.00023013,3]
[329526897,1718417510517,-500.0,0.00023013,3]
[329526898,1718417510538,-500.0,0.00023013,3]
[329526899,1718417510552,-583.89513315,0.00023013,3]
[329526900,1718417510569,-500.0,0.00023013,3]
[329526901,1718417510583,-500.0,0.00023013,3]
[329526902,1718417510613,-500.0,0.00023013,3]
[329526903,1718417510631,-500.0,0.00023013,3]
[329526904,1718417510645,-500.0,0.00023013,3]
[329526905,1718417510659,-500.0,0.00023013,3]
[329526906,1718417510673,-501.07,0.00023013,3]
[329526907,1718417510696,-500.0,0.00023013,3]
[329526908,1718417510724,-500.0,0.00023013,3]
[329526909,1718417510751,-500.0,0.00023013,3]
[329526910,1718417510766,-500.0,0.00023013,3]
[329526911,1718417510788,-500.0,0.00023013,3]
[329526912,1718417510812,-500.0,0.00023013,3]
[329526913,1718417510828,-422.1769627,0.00023013,3]
[329526914,1718417510850,-500.0,0.00023013,3]
[329526915,1718417510883,-500.0,0.00023013,3]
[329526916,1718417510909,-500.0,0.00023013,3]
[329526917,1718417510935,-150.0,0.00023013,3]
[329526918,1718417510977,-553.70856704,0.00023013,3]
[329526919,1718417511004,-500.0,0.00023013,3]
[329526920,1718417511016,-500.0,0.00023013,3]
[329526921,1718417511036,-500.0,0.00023013,3]
[329526922,1718417511050,-500.0,0.00023013,3]
[329526923,1718417511064,-500.0,0.00023013,3]
[329526924,1718417511080,-500.0,0.00023013,3]
[329526925,1718417511098,-500.0,0.00023013,3]
[329526926,1718417511110,-500.0,0.00023013,3]
[329526927,1718417511136,-500.0,0.00023013,3]
[329526928,1718417511158,-538.46383443,0.00023013,3]
[329526929,1718417511186,-500.0,0.00023013,3]
[329526930,1718417511209,-500.0,0.00023013,3]
[329526931,1718417511224,-500.0,0.00023013,3]
[329526932,1718417511252,-500.0,0.00023013,3]
[329526933,1718417511278,-672.79,0.00023013,3]
[329526934,1718417511294,-500.0,0.00023013,3]
[329526935,1718417511313,-527.95805138,0.00023013,3]
[329526936,1718417511326,-282.92882639,0.00023013,3]
[329526937,1718417511341,-500.0,0.00023013,3]
[329526938,1718417511359,-500.0,0.00023013,3]
[329526939,1718417511372,-500.0,0.00023013,3]
[329526940,1718417511387,-500.0,0.00023013,3]
[329526941,1718417511403,-500.0,0.00023013,3]
[329526942,1718417511418,-870.98,0.00023013,3]
[329526943,1718417511434,-668.73,0.00023013,3]
[329526944,1718417511446,-500.0,0.00023013,3]
[329526945,1718417511464,-500.0,0.00023013,3]
[329526946,1718417511480,-500.0,0.00023013,3]
[329526947,1718417511493,-500.0,0.00023013,3]
[329526948,1718417511508,-500.0,0.00023013,3]
[329526949,1718417511520,-500.0,0.00023013,3]
[329526950,1718417511534,-500.0,0.00023013,3]
[329526951,1718417511547,-500.0,0.00023013,3]
[329526952,1718417511558,-1385.03,0.00023013,3]
[329526953,1718417511571,-500.0,0.00023013,3]
[329526954,1718417511588,-500.0,0.00023013,3]
[329526955,1718417511600,-500.0,0.00023013,3]
[329526956,1718417511614,-500.0,0.00023013,3]
[329526957,1718417511634,-500.0,0.00023013,3]
[329526958,1718417511650,-500.0,0.00023013,3]
[329526959,1718417511663,-545.94,0.00023013,3]
[329526960,1718417511677,-728.36,0.00023013,3]
[329526961,1718417511691,-888.58,0.00023013,3]
[329526962,1718417511706,-500.0,0.00023013,3]
[329526963,1718417511741,-500.0,0.00023013,3]
[329526964,1718417511761,-500.0,0.00023013,3]
[329526965,1718417511787,-500.0,0.00023013,3]
[329526966,1718417511806,-521.80816046,0.00023013,3]
[329526967,1718417511826,-500.0,0.00023013,3]
[329526968,1718417511845,-500.0,0.00023013,3]
[329526969,1718417511869,-682.82,0.00023013,3]
[329526970,1718417511888,-515.46347042,0.00023013,3]
[329526971,1718417511906,-500.0,0.00023013,3]
[329526972,1718417511917,-254.97397431,0.00023013,3]
[329526973,1718417511932,-500.0,0.00023013,3]
[329526974,1718417511946,-500.0,0.00023013,3]
[329526975,1718417511959,-500.0,0.00023013,3]
[329526976,1718417511974,-540.50671121,0.00023013,3]
[329526977,1718417511985,-500.0,0.00023013,3]
[329526978,1718417512000,-532.27,0.00023013,3]
[329526979,1718417512011,-500.0,0.00023013,3]
[329526980,1718417512023,-4841.14,0.00023013,3]
[329526981,1718417512041,-500.0,0.00023013,3]
[329526982,1718417512054,-606.39,0.00023013,3]
[329526983,1718417512088,-500.0,0.00023013,3]
[329526984,1718417512109,-500.0,0.00023013,3]
[329526985,1718417512129,-856.26,0.00023013,3]
[329526986,1718417512147,-500.0,0.00023013,3]
[329526987,1718417512161,-456.31514322,0.00023013,3]
[329526988,1718417512175,-500.0,0.00023013,3]
[329526989,1718417512207,-500.0,0.00023013,3]
[329526990,1718417512226,-500.0,0.00023013,3]
[329526991,1718417512242,-500.0,0.00023013,3]
[329526992,1718417512278,-506.1,0.00023013,3]
[329526993,1718417512312,-500.0,0.00023013,3]
[329526994,1718417512340,-500.0,0.00023013,3]
[329526995,1718417512359,-724.3,0.00023013,3]
[329526996,1718417512380,-500.0,0.00023013,3]
[329526997,1718417512407,-531.35,0.00023013,3]
[329526998,1718417512433,-813.58,0.00023013,3]
[329526999,1718417512464,-500.0,0.00023013,3]
[329527000,1718417512491,-500.0,0.00023013,3]
[329527001,1718417512509,-500.0,0.00023013,3]
[329527002,1718417512522,-500.0,0.00023013,3]
[329527003,1718417512546,-500.0,0.00023013,3]
[329527004,1718417512568,-500.0,0.00023013,3]
[329527005,1718417512593,-519.65,0.00023013,3]
[329527006,1718417512605,-778.57,0.00023013,3]
[329527007,1718417512618,-515.24,0.00023013,3]
[329527008,1718417512631,-500.0,0.00023013,3]
[329527009,1718417512643,-500.0,0.00023013,3]
[329527010,1718417512662,-1047.51,0.00023013,3]
[329527011,1718417512675,-500.0,0.00023013,3]
[329527012,1718417512690,-903.22,0.00023013,3]
[329527013,1718417512707,-500.0,0.00023013,3]
[329527014,1718417512719,-746.57,0.00023013,3]
[329527015,1718417512738,-500.0,0.00023013,3]
[329527016,1718417512772,-639.11,0.00023013,3]
[329527017,1718417512783,-500.0,0.00023013,3]
[329527018,1718417512805,-777.96,0.00023013,3]
[329527019,1718417512821,-500.0,0.00023013,3]
[329527020,1718417512833,-803.6,0.00023013,3]
[329527021,1718417512847,-500.0,0.00023013,3]
[329527022,1718417512864,-500.0,0.00023013,3]
[329527023,1718417512876,-2432.85,0.00023013,3]
[329527024,1718417512900,-500.0,0.00023013,3]
[329527025,1718417512930,-500.0,0.00023013,3]
[329527026,1718417512950,-500.0,0.00023013,3]
[329527028,1718417512985,-3528.32,0.00023013,3]
[329527029,1718417512997,-559.3,0.00023013,3]
[329527030,1718417513010,-518.99,0.00023013,3]
[329527031,1718417513030,-500.0,0.00023013,3]
[329527032,1718417513053,-626.24,0.00023013,3]
[329527033,1718417513083,-2169.8,0.00023013,3]
[329527034,1718417513106,-500.0,0.00023013,3]
[329527035,1718417513127,-500.0,0.00023013,3]
[329527036,1718417513151,-557.84297294,0.00023013,3]
[329527037,1718417513174,-1397.37,0.00023013,3]
[329527038,1718417513200,-500.0,0.00023013,3]
[329527039,1718417513216,-500.0,0.00023013,3]
[329527040,1718417513238,-1812.96,0.00023013,3]
[329527041,1718417513252,-1116.08,0.00023013,3]
[329527042,1718417513270,-2203.0,0.00023013,3]
[329527043,1718417513292,-246.34673823,0.00023013,3]
[329527044,1718417513309,-2898.04,0.00023013,3]
[329527045,1718417513329,-500.0,0.00023013,3]
[329527046,1718417513342,-500.0,0.00023013,3]
[329527047,1718417513376,-1318.8,0.00023013,3]
[329527048,1718417513391,-500.0,0.00023013,3]
[329527049,1718417513406,-500.0,0.00023013,3]
[329527050,1718417513427,-500.0,0.00023013,3]
[329527051,1718417513443,-1088.26,0.00023013,3]
[329527052,1718417513457,-500.0,0.00023013,3]
[329527053,1718417513472,-1288.4,0.00023013,3]
[329527054,1718417513490,-7905.56,0.00023013,3]
[329527055,1718417513507,-500.0,0.00023013,3]
[329527056,1718417513522,-500.0,0.00023013,3]
[329527057,1718417513536,-500.0,0.00023013,3]
[329527058,1718417513548,-974.3,0.00023013,3]
[329527059,1718417513561,-771.35,0.00023013,3]
[329527060,1718417513574,-2138.1,0.00023013,3]
[329527061,1718417513587,-691.68,0.00023013,3]
[329527062,1718417513600,-500.0,0.00023013,3]
[329527063,1718417513720,-3270.81,0.00023013,3]
[329527064,1718417513742,-500.0,0.00023013,3]
[329527065,1718417513759,-713.64,0.00023013,3]
[329527066,1718417513776,-500.0,0.00023013,3]
[329527067,1718417513791,-599.22,0.00023013,3]
[329527068,1718417513803,-500.0,0.00023013,3]
[329527069,1718417513825,-500.0,0.00023013,3]
[329527070,1718417513869,-500.0,0.00023013,3]
[329527071,1718417513898,-523.84,0.00023013,3]
[329527072,1718417513912,-500.0,0.00023013,3]
[329527073,1718417513924,-500.0,0.00023013,3]
[329527074,1718417513945,-1195.79,0.00023013,3]
[329527075,1718417513961,-500.0,0.00023013,3]
[329527076,1718417513978,-500.0,0.00023013,3]
[329527077,1718417513996,-500.0,0.00023013,3]
[329527078,1718417514017,-500.0,0.00023013,3]
[329527079,1718417514031,-500.0,0.00023013,3]
[329527080,1718417514046,-1341.44,0.00023013,3]
[329527081,1718417514059,-500.0,0.00023013,3]
[329527082,1718417514078,-1129.63,0.00023013,3]
[329527083,1718417514093,-500.0,0.00023013,3]
[329527084,1718417514108,-500.0,0.00023013,3]
[329527085,1718417514121,-500.0,0.00023013,3]
[329527086,1718417514133,-500.0,0.00023013,3]
[329527087,1718417514146,-1346.88,0.00023013,3]
[329527088,1718417514163,-3501.23,0.00023013,3]
[329527089,1718417514175,-516.84,0.00023013,3]
[329527090,1718417514186,-500.0,0.00023013,3]
[329527091,1718417514203,-500.0,0.00023013,3]
[329527092,1718417514220,-1291.54,0.00023013,3]
[329527093,1718417514233,-809.78,0.00023013,3]
[329527094,1718417514248,-500.0,0.00023013,3]
[329527095,1718417514262,-500.0,0.00023013,3]
[329527096,1718417514276,-923.8,0.00023013,3]
[329527097,1718417514293,-500.0,0.00023013,3]
[329527098,1718417514313,-1654.95,0.00023013,3]
[329527099,1718417514337,-854.0,0.00023013,3]
[329527100,1718417514355,-500.0,0.00023013,3]
[329527101,1718417514423,-4144.87,0.00023013,3]
[329527102,1718417514454,-500.0,0.00023013,3]
[329527103,1718417514503,-640.42790249,0.00023013,3]
[329527104,1718417514538,-500.0,0.00023013,3]
[329527105,1718417514570,-520.94623532,0.00023013,3]
[329527106,1718417514587,-2305.21,0.00023013,3]
[329527107,1718417514603,-500.0,0.00023013,3]
[329527108,1718417514622,-500.0,0.00023013,3]
[329527109,1718417514648,-500.0,0.00023013,3]
[329527110,1718417514670,-500.0,0.00023013,3]
[329527111,1718417514689,-500.0,0.00023013,3]
[329527112,1718417514705,-1983.64,0.00023013,3]
[329527113,1718417514724,-500.0,0.00023013,3]
[329527114,1718417514738,-500.0,0.00023013,3]
[329527115,1718417514752,-500.0,0.00023013,3]
[329527116,1718417514764,-500.0,0.00023013,3]
[329527117,1718417514776,-768.32,0.00023013,3]
[329527118,1718417514789,-493.55691117,0.00023013,3]
[329527119,1718417514806,-500.0,0.00023013,3]
[329527120,1718417514825,-500.0,0.00023013,3]
[329527121,1718417514842,-5336.34,0.00023013,3]
[329527122,1718417514866,-822.64,0.00023013,3]
[329527123,1718417514887,-500.0,0.00023013,3]
[329527124,1718417514909,-500.0,0.00023286,3]
[329527125,1718417514942,-500.0,0.00023287,3]
[329527126,1718417514971,-520.59418191,0.00023287,3]
[329527127,1718417514991,-523.13577315,0.00023287,3]
[329527128,1718417515018,-500.0,0.00023287,3]
[329527129,1718417515031,-500.0,0.00023287,3]
[329527130,1718417515065,-500.0,0.00023287,3]
[329527131,1718417515078,-500.0,0.00023287,3]
[329527132,1718417515093,-430.61,0.00023287,3]
[329527133,1718417515112,-500.0,0.00023287,3]
[329527134,1718417515123,-500.0,0.00023287,3]
[329527135,1718417515136,-468.69509081,0.00023287,3]
[329527136,1718417515154,-668.77,0.00023287,3]
[329527137,1718417515166,-500.0,0.00023287,3]
[329527138,1718417515178,-500.0,0.00023287,3]
[329527139,1718417515216,-500.0,0.00023287,3]
[329527140,1718417515238,-518.63959606,0.00023287,3]
[329527141,1718417515250,-500.0,0.00023287,3]
[329527142,1718417515267,-492.42572749,0.00023287,3]
[329527143,1718417515287,-500.0,0.00023287,3]
[329527144,1718417515325,-500.0,0.00023287,3]
[329527145,1718417515345,-500.0,0.00023287,3]
[329527146,1718417515375,-500.0,0.00023287,3]
[329527147,1718417515402,-500.0,0.00023287,3]